[Event "November 21 Early 2023"]
[Site "https://www.chess.com"]
[Date "2023.11.21"]
[Round "1"]
[White "Nguyen, Thi Mai Hung"]
[Black "Kuzhylnyi, Oleksandr"]
[Result "1-0"]
[Board "142"]
[TimeControl "180+1"]
[WhiteFideId "12401676"]
[BlackFideId "34110500"]
[WhiteElo "2067"]
[BlackElo "2173"]
[WhiteTeam "VIE"]
[BlackTeam "UKR"]
[WhiteClock "0:00:09"]
[BlackClock "0:00:09"]

1. d4 {[%clk 0:03:00]}  g6 {[%clk 0:02:58]} 2. Nf3 {[%clk 0:03:01]}  Bg7 {[%clk 0:02:58]} 3. Bf4 {[%clk 0:03:01]}  d6 {[%clk 0:02:58]} 4. e3 {[%clk 0:03:02]}  Nd7 {[%clk 0:02:59]} 5. h3 {[%clk 0:02:59]}  e5 {[%clk 0:02:58]} 6. Bh2 {[%clk 0:03:00]}  Qe7 {[%clk 0:02:56]} 7. c3 {[%clk 0:02:58]}  Ngf6 {[%clk 0:02:55]} 8. Bc4 {[%clk 0:02:55]}  O-O {[%clk 0:02:54]} 9. O-O {[%clk 0:02:54]}  b6 {[%clk 0:02:53]} 10. Nbd2 {[%clk 0:02:51]}  Bb7 {[%clk 0:02:53]} 11. a4 {[%clk 0:02:51]}  a5 {[%clk 0:02:51]} 12. Qb3 {[%clk 0:02:33]}  h6 {[%clk 0:02:44]} 13. Rfd1 {[%clk 0:02:32]}  Rad8 {[%clk 0:02:31]} 14. Nf1 {[%clk 0:02:29]}  Ne4 {[%clk 0:02:30]} 15. Ng3 {[%clk 0:02:19]}  Ng5 {[%clk 0:02:23]} 16. Nd2 {[%clk 0:02:09]}  Nf6 {[%clk 0:02:17]} 17. Re1 {[%clk 0:01:47]}  h5 {[%clk 0:02:16]} 18. f4 {[%clk 0:01:46]}  Ngh7 {[%clk 0:01:58]} 19. f5 {[%clk 0:01:35]}  d5 {[%clk 0:01:47]} 20. fxg6 {[%clk 0:01:25]}  fxg6 {[%clk 0:01:48]} 21. Bf1 {[%clk 0:01:15]}  e4 {[%clk 0:01:17]} 22. c4 {[%clk 0:01:08]}  Ng5 {[%clk 0:01:13]} 23. c5 {[%clk 0:01:01]}  Bc8 {[%clk 0:01:01]} 24. cxb6 {[%clk 0:00:57]}  cxb6 {[%clk 0:00:58]} 25. Qxb6 {[%clk 0:00:57]}  h4 {[%clk 0:00:51]} 26. Ne2 {[%clk 0:00:57]}  Kh7 {[%clk 0:00:49]} 27. Qc7 {[%clk 0:00:43]}  Rd7 {[%clk 0:00:47]} 28. Qe5 {[%clk 0:00:43]}  Ne6 {[%clk 0:00:41]} 29. Nf4 {[%clk 0:00:40]}  Nxf4 {[%clk 0:00:37]} 30. Bxf4 {[%clk 0:00:40]}  Qf7 {[%clk 0:00:32]} 31. Qg5 {[%clk 0:00:38]}  Nh5 {[%clk 0:00:27]} 32. Qxh4 {[%clk 0:00:38]}  Kg8 {[%clk 0:00:28]} 33. Bg5 {[%clk 0:00:34]}  Rc7 {[%clk 0:00:23]} 34. Rac1 {[%clk 0:00:29]}  Be6 {[%clk 0:00:20]} 35. Be2 {[%clk 0:00:27]}  Nf6 {[%clk 0:00:19]} 36. Rf1 {[%clk 0:00:18]}  Rxc1 {[%clk 0:00:19]} 37. Rxc1 {[%clk 0:00:19]}  Nd7 {[%clk 0:00:19]} 38. Rf1 {[%clk 0:00:16]}  Qe8 {[%clk 0:00:18]} 39. Rxf8+ {[%clk 0:00:16]}  Qxf8 {[%clk 0:00:19]} 40. Qf4 {[%clk 0:00:12]}  Qb4 {[%clk 0:00:18]} 41. Nf1 {[%clk 0:00:12]}  Qxb2 {[%clk 0:00:17]} 42. Bb5 {[%clk 0:00:13]}  Nf8 {[%clk 0:00:17]} 43. Be7 {[%clk 0:00:12]}  Bf7 {[%clk 0:00:17]} 44. Qb8 {[%clk 0:00:10]}  Bh6 {[%clk 0:00:14]} 45. Kh2 {[%clk 0:00:09]}  Qb4 {[%clk 0:00:10]} 46. Bxb4 {[%clk 0:00:08]}  axb4 {[%clk 0:00:11]} 47. a5 {[%clk 0:00:08]}  b3 {[%clk 0:00:11]} 48. a6 {[%clk 0:00:09]}  b2 {[%clk 0:00:12]} 49. Be2 {[%clk 0:00:09]}  Bxe3 {[%clk 0:00:11]} 50. Qxb2 {[%clk 0:00:09]}  Bf4+ {[%clk 0:00:10]} 51. g3 {[%clk 0:00:09]}  Bb8 {[%clk 0:00:09]} 52. Qxb8 {[%clk 0:00:09]} 1-0

[Event "November 21 Early 2023"]
[Site "https://www.chess.com"]
[Date "2023.11.21"]
[Round "1"]
[White "Makhnev, Denis"]
[Black "Matveeva, Olga"]
[Result "1-0"]
[Board "143"]
[TimeControl "180+1"]
[WhiteFideId "13707647"]
[BlackFideId "24107018"]
[WhiteElo "2533"]
[BlackElo "1883"]
[WhiteTeam "KAZ"]
[BlackTeam "RUS"]
[WhiteClock "0:02:03"]
[BlackClock "0:00:09"]

1. Nf3 {[%clk 0:03:00]}  d5 {[%clk 0:02:59]} 2. c4 {[%clk 0:03:00]}  e6 {[%clk 0:02:59]} 3. g3 {[%clk 0:02:59]}  Nf6 {[%clk 0:02:59]} 4. Bg2 {[%clk 0:02:59]}  Be7 {[%clk 0:02:59]} 5. O-O {[%clk 0:02:59]}  O-O {[%clk 0:03:00]} 6. d4 {[%clk 0:02:59]}  dxc4 {[%clk 0:02:57]} 7. Ne5 {[%clk 0:02:58]}  Nc6 {[%clk 0:02:56]} 8. Bxc6 {[%clk 0:02:57]}  bxc6 {[%clk 0:02:57]} 9. Nxc6 {[%clk 0:02:57]}  Qe8 {[%clk 0:02:57]} 10. Nxe7+ {[%clk 0:02:58]}  Qxe7 {[%clk 0:02:58]} 11. Qc2 {[%clk 0:02:58]}  c5 {[%clk 0:02:50]} 12. Qxc4 {[%clk 0:02:57]}  cxd4 {[%clk 0:02:49]} 13. Qxd4 {[%clk 0:02:58]}  Rd8 {[%clk 0:02:49]} 14. Qh4 {[%clk 0:02:58]}  Rb8 {[%clk 0:02:40]} 15. b3 {[%clk 0:02:57]}  Ba6 {[%clk 0:02:35]} 16. Nc3 {[%clk 0:02:55]}  Nd5 {[%clk 0:02:13]} 17. Qxe7 {[%clk 0:02:52]}  Nxe7 {[%clk 0:02:14]} 18. Be3 {[%clk 0:02:43]}  Rbc8 {[%clk 0:02:08]} 19. Rfc1 {[%clk 0:02:42]}  Nc6 {[%clk 0:02:01]} 20. f3 {[%clk 0:02:33]}  f5 {[%clk 0:01:45]} 21. Kf2 {[%clk 0:02:31]}  Kf7 {[%clk 0:01:45]} 22. Na4 {[%clk 0:02:14]}  Nb4 {[%clk 0:01:38]} 23. Nc5 {[%clk 0:02:11]}  Bb5 {[%clk 0:01:30]} 24. Nb7 {[%clk 0:02:08]}  Ke8 {[%clk 0:00:19]} 25. Rxc8 {[%clk 0:02:05]}  Rxc8 {[%clk 0:00:18]} 26. Nd6+ {[%clk 0:02:05]}  Kd7 {[%clk 0:00:09]} 27. Nxb5 {[%clk 0:02:03]} 1-0

[Event "November 21 Early 2023"]
[Site "https://www.chess.com"]
[Date "2023.11.21"]
[Round "1"]
[White "Golubev, Mikhail"]
[Black "Ishbaev, Alibek"]
[Result "0-1"]
[Board "147"]
[TimeControl "180+1"]
[WhiteFideId "14100983"]
[BlackFideId "14205017"]
[WhiteElo "2352"]
[BlackElo "2378"]
[WhiteTeam "UKR"]
[BlackTeam "UZB"]
[WhiteClock "0:00:00"]
[BlackClock "0:00:30"]

1. e4 {[%clk 0:02:53]}  e5 {[%clk 0:02:58]} 2. Nf3 {[%clk 0:02:33]}  Nc6 {[%clk 0:02:57]} 3. Bc4 {[%clk 0:02:33]}  Be7 {[%clk 0:02:57]} 4. d4 {[%clk 0:02:29]}  d6 {[%clk 0:02:57]} 5. dxe5 {[%clk 0:02:22]}  dxe5 {[%clk 0:02:57]} 6. Bd5 {[%clk 0:02:17]}  Bd6 {[%clk 0:02:39]} 7. Ng5 {[%clk 0:01:39]}  Nh6 {[%clk 0:02:33]} 8. O-O {[%clk 0:01:38]}  O-O {[%clk 0:02:33]} 9. Nc3 {[%clk 0:01:33]}  Ne7 {[%clk 0:02:32]} 10. Bb3 {[%clk 0:01:31]}  Ng6 {[%clk 0:02:30]} 11. g3 {[%clk 0:00:46]}  Ng4 {[%clk 0:02:18]} 12. h3 {[%clk 0:00:38]}  Nf6 {[%clk 0:02:18]} 13. Kg2 {[%clk 0:00:34]}  h6 {[%clk 0:02:15]} 14. Nf3 {[%clk 0:00:33]}  Qe7 {[%clk 0:02:15]} 15. Be3 {[%clk 0:00:30]}  Be6 {[%clk 0:02:13]} 16. Qe2 {[%clk 0:00:29]}  a6 {[%clk 0:02:10]} 17. Rad1 {[%clk 0:00:28]}  Rad8 {[%clk 0:02:09]} 18. Bxe6 {[%clk 0:00:23]}  Qxe6 {[%clk 0:02:09]} 19. a3 {[%clk 0:00:23]}  Nh5 {[%clk 0:02:00]} 20. Rd2 {[%clk 0:00:20]}  Bc5 {[%clk 0:01:54]} 21. Rfd1 {[%clk 0:00:17]}  Rxd2 {[%clk 0:01:53]} 22. Rxd2 {[%clk 0:00:16]}  Bxe3 {[%clk 0:01:53]} 23. Qxe3 {[%clk 0:00:16]}  Nhf4+ {[%clk 0:01:53]} 24. gxf4 {[%clk 0:00:10]}  Nxf4+ {[%clk 0:01:54]} 25. Kg1 {[%clk 0:00:10]}  Qxh3 {[%clk 0:01:49]} 26. Ne1 {[%clk 0:00:08]}  Qg4+ {[%clk 0:01:43]} 27. Qg3 {[%clk 0:00:08]}  Qe6 {[%clk 0:01:37]} 28. Ng2 {[%clk 0:00:08]}  Nh5 {[%clk 0:01:25]} 29. Qf3 {[%clk 0:00:08]}  Nf6 {[%clk 0:01:26]} 30. Nd5 {[%clk 0:00:08]}  Nxd5 {[%clk 0:01:23]} 31. Rxd5 {[%clk 0:00:08]}  c6 {[%clk 0:01:23]} 32. Rd1 {[%clk 0:00:08]}  f5 {[%clk 0:01:23]} 33. exf5 {[%clk 0:00:07]}  Rxf5 {[%clk 0:01:23]} 34. Qg4 {[%clk 0:00:07]}  Qf6 {[%clk 0:01:19]} 35. Rd8+ {[%clk 0:00:05]}  Kh7 {[%clk 0:01:19]} 36. Rd2 {[%clk 0:00:05]}  Rg5 {[%clk 0:01:17]} 37. Qe4+ {[%clk 0:00:05]}  Kh8 {[%clk 0:01:11]} 38. Kf1 {[%clk 0:00:05]}  Qe6 {[%clk 0:01:04]} 39. Ne3 {[%clk 0:00:05]}  Qh3+ {[%clk 0:00:58]} 40. Ke2 {[%clk 0:00:05]}  Qh5+ {[%clk 0:00:58]} 41. Qf3 {[%clk 0:00:05]}  Qe8 {[%clk 0:00:56]} 42. Qh3 {[%clk 0:00:05]}  e4 {[%clk 0:00:51]} 43. Rd4 {[%clk 0:00:05]}  Qe5 {[%clk 0:00:37]} 44. Rd8+ {[%clk 0:00:04]}  Kh7 {[%clk 0:00:37]} 45. c3 {[%clk 0:00:03]}  Qb5+ {[%clk 0:00:37]} 46. Ke1 {[%clk 0:00:03]}  Qxb2 {[%clk 0:00:37]} 47. Nd1 {[%clk 0:00:03]}  Rg1+ {[%clk 0:00:35]} 48. Qf1 {[%clk 0:00:02]}  Rxf1+ {[%clk 0:00:35]} 49. Kxf1 {[%clk 0:00:03]}  Qxa3 {[%clk 0:00:34]} 50. Ke2 {[%clk 0:00:03]}  a5 {[%clk 0:00:33]} 51. Rd4 {[%clk 0:00:00]}  Qe7 {[%clk 0:00:30]} 0-1

[Event "November 21 Early 2023"]
[Site "https://www.chess.com"]
[Date "2023.11.21"]
[Round "1"]
[White "Garrido, Denis"]
[Black "Trost, Edvin"]
[Result "0-1"]
[Board "148"]
[TimeControl "180+1"]
[WhiteFideId "601217"]
[BlackFideId "1729519"]
[WhiteElo "2377"]
[BlackElo "2385"]
[WhiteTeam "FRA"]
[BlackTeam "SWE"]
[WhiteClock "0:01:57"]
[BlackClock "0:00:56"]

1. e4 {[%clk 0:02:59]}  c5 {[%clk 0:02:58]} 2. Nf3 {[%clk 0:02:58]}  e6 {[%clk 0:02:58]} 3. d4 {[%clk 0:02:58]}  cxd4 {[%clk 0:02:59]} 4. Nxd4 {[%clk 0:02:58]}  Nc6 {[%clk 0:02:59]} 5. Nc3 {[%clk 0:02:57]}  Qc7 {[%clk 0:02:57]} 6. Qd3 {[%clk 0:02:57]}  a6 {[%clk 0:02:51]} 7. Nxc6 {[%clk 0:02:57]}  dxc6 {[%clk 0:02:45]} 8. Qg3 {[%clk 0:02:56]}  Qxg3 {[%clk 0:02:46]} 9. hxg3 {[%clk 0:02:57]}  e5 {[%clk 0:02:46]} 10. Na4 {[%clk 0:02:57]}  Be6 {[%clk 0:02:45]} 11. Bc4 {[%clk 0:02:57]}  Bxc4 {[%clk 0:02:43]} 12. Nb6 {[%clk 0:02:57]}  Rd8 {[%clk 0:02:29]} 13. Nxc4 {[%clk 0:02:57]}  Nf6 {[%clk 0:02:18]} 14. f3 {[%clk 0:02:55]}  Nd7 {[%clk 0:02:16]} 15. Be3 {[%clk 0:02:54]}  b5 {[%clk 0:02:12]} 16. Nd2 {[%clk 0:02:45]}  Bc5 {[%clk 0:02:11]} 17. Ke2 {[%clk 0:02:45]}  Ke7 {[%clk 0:02:08]} 18. a4 {[%clk 0:02:43]}  b4 {[%clk 0:02:06]} 19. Rh5 {[%clk 0:02:34]}  f6 {[%clk 0:02:04]} 20. Rah1 {[%clk 0:02:33]}  h6 {[%clk 0:02:03]} 21. g4 {[%clk 0:02:32]}  Bxe3 {[%clk 0:01:59]} 22. Kxe3 {[%clk 0:02:31]}  Nb6 {[%clk 0:01:59]} 23. b3 {[%clk 0:02:29]}  Rd4 {[%clk 0:01:58]} 24. g5 {[%clk 0:02:22]}  Rhd8 {[%clk 0:01:38]} 25. gxf6+ {[%clk 0:02:22]}  Kxf6 {[%clk 0:01:37]} 26. Rd1 {[%clk 0:02:22]}  c5 {[%clk 0:01:34]} 27. Rhh1 {[%clk 0:02:20]}  c4 {[%clk 0:01:33]} 28. Ke2 {[%clk 0:02:19]}  c3 {[%clk 0:01:17]} 29. Nc4 {[%clk 0:02:10]}  Nxc4 {[%clk 0:00:59]} 30. bxc4 {[%clk 0:02:02]}  Rd2+ {[%clk 0:00:55]} 31. Rxd2 {[%clk 0:02:00]}  Rxd2+ {[%clk 0:00:56]} 32. Ke3 {[%clk 0:01:59]}  Rxc2 {[%clk 0:00:57]} 33. Rb1 {[%clk 0:01:59]}  Rb2 {[%clk 0:00:57]} 34. Rd1 {[%clk 0:01:57]}  c2 {[%clk 0:00:56]} 35. Rc1 {[%clk 0:01:57]}  b3 {[%clk 0:00:56]} 0-1

[Event "November 21 Early 2023"]
[Site "https://www.chess.com"]
[Date "2023.11.21"]
[Round "1"]
[White "Tasev, Dejan"]
[Black "Zaksaite, Salomeja"]
[Result "1/2-1/2"]
[Board "149"]
[TimeControl "180+1"]
[WhiteFideId "936618"]
[BlackFideId "12801496"]
[WhiteElo "2248"]
[BlackElo "2065"]
[WhiteTeam "SRB"]
[BlackTeam "LTU"]
[WhiteClock "0:00:42"]
[BlackClock "0:00:07"]

1. e4 {[%clk 0:03:00]}  c5 {[%clk 0:02:59]} 2. Nf3 {[%clk 0:02:59]}  e6 {[%clk 0:02:59]} 3. Nc3 {[%clk 0:02:59]}  Nc6 {[%clk 0:02:59]} 4. g3 {[%clk 0:03:00]}  d5 {[%clk 0:02:58]} 5. exd5 {[%clk 0:03:00]}  exd5 {[%clk 0:02:59]} 6. Bg2 {[%clk 0:03:00]}  Nf6 {[%clk 0:02:59]} 7. O-O {[%clk 0:03:00]}  d4 {[%clk 0:02:58]} 8. Ne2 {[%clk 0:03:00]}  Be7 {[%clk 0:02:56]} 9. d3 {[%clk 0:03:00]}  O-O {[%clk 0:02:56]} 10. h3 {[%clk 0:02:59]}  Nd5 {[%clk 0:02:54]} 11. Nf4 {[%clk 0:02:58]}  Nxf4 {[%clk 0:02:54]} 12. Bxf4 {[%clk 0:02:59]}  Be6 {[%clk 0:02:53]} 13. a3 {[%clk 0:02:55]}  Qd7 {[%clk 0:02:53]} 14. Kh2 {[%clk 0:02:52]}  Bd6 {[%clk 0:02:49]} 15. Qd2 {[%clk 0:02:49]}  Rfe8 {[%clk 0:02:48]} 16. Rfe1 {[%clk 0:02:49]}  h6 {[%clk 0:02:47]} 17. Re2 {[%clk 0:02:41]}  Bxf4 {[%clk 0:02:36]} 18. Qxf4 {[%clk 0:02:40]}  Bd5 {[%clk 0:02:36]} 19. Rae1 {[%clk 0:02:40]}  Re6 {[%clk 0:02:22]} 20. Rxe6 {[%clk 0:02:38]}  Bxe6 {[%clk 0:02:22]} 21. Nd2 {[%clk 0:02:31]}  Rc8 {[%clk 0:02:19]} 22. Ne4 {[%clk 0:02:26]}  Ne7 {[%clk 0:02:17]} 23. h4 {[%clk 0:02:20]}  b5 {[%clk 0:01:58]} 24. Qd6 {[%clk 0:01:52]}  Qxd6 {[%clk 0:01:40]} 25. Nxd6 {[%clk 0:01:53]}  Rb8 {[%clk 0:01:41]} 26. Bh3 {[%clk 0:01:33]}  Rb6 {[%clk 0:01:14]} 27. Bxe6 {[%clk 0:01:27]}  Rxd6 {[%clk 0:01:14]} 28. Bb3 {[%clk 0:01:24]}  Kf8 {[%clk 0:01:13]} 29. a4 {[%clk 0:01:18]}  a6 {[%clk 0:01:06]} 30. axb5 {[%clk 0:01:18]}  axb5 {[%clk 0:01:06]} 31. Ra1 {[%clk 0:01:18]}  Nc6 {[%clk 0:00:50]} 32. Ra6 {[%clk 0:01:09]}  Ke7 {[%clk 0:00:46]} 33. Rb6 {[%clk 0:01:07]}  c4 {[%clk 0:00:13]} 34. dxc4 {[%clk 0:00:58]}  bxc4 {[%clk 0:00:13]} 35. Bxc4 {[%clk 0:00:56]}  Ne5 {[%clk 0:00:13]} 36. Rb7+ {[%clk 0:00:55]}  Kf6 {[%clk 0:00:13]} 37. Be2 {[%clk 0:00:54]}  d3 {[%clk 0:00:13]} 38. cxd3 {[%clk 0:00:54]}  Nxd3 {[%clk 0:00:14]} 39. Bxd3 {[%clk 0:00:54]}  Rxd3 {[%clk 0:00:13]} 40. b4 {[%clk 0:00:55]}  Rb3 {[%clk 0:00:12]} 41. Kg2 {[%clk 0:00:55]}  h5 {[%clk 0:00:13]} 42. b5 {[%clk 0:00:54]}  g6 {[%clk 0:00:13]} 43. Kf1 {[%clk 0:00:53]}  Rb2 {[%clk 0:00:13]} 44. Kg2 {[%clk 0:00:53]}  Ke6 {[%clk 0:00:13]} 45. b6 {[%clk 0:00:51]}  Kf6 {[%clk 0:00:13]} 46. Kf3 {[%clk 0:00:51]}  Ke6 {[%clk 0:00:11]} 47. Ke3 {[%clk 0:00:51]}  Kf6 {[%clk 0:00:11]} 48. Rb8 {[%clk 0:00:49]}  Kg7 {[%clk 0:00:09]} 49. f3 {[%clk 0:00:49]}  Rb3+ {[%clk 0:00:08]} 50. Ke4 {[%clk 0:00:48]}  Kf6 {[%clk 0:00:09]} 51. g4 {[%clk 0:00:47]}  hxg4 {[%clk 0:00:07]} 52. fxg4 {[%clk 0:00:48]}  Rb4+ {[%clk 0:00:07]} 53. Kf3 {[%clk 0:00:48]}  Kg7 {[%clk 0:00:07]} 54. b7 {[%clk 0:00:45]}  Kh7 {[%clk 0:00:05]} 55. h5 {[%clk 0:00:40]}  gxh5 {[%clk 0:00:04]} 56. gxh5 {[%clk 0:00:40]}  Kg7 {[%clk 0:00:05]} 57. h6+ {[%clk 0:00:41]}  Kh7 {[%clk 0:00:05]} 58. Ke3 {[%clk 0:00:41]}  f5 {[%clk 0:00:04]} 59. Kf3 {[%clk 0:00:40]}  Rb5 {[%clk 0:00:03]} 60. Kf4 {[%clk 0:00:40]}  Rb4+ {[%clk 0:00:04]} 61. Kxf5 {[%clk 0:00:40]}  Rb5+ {[%clk 0:00:04]} 62. Ke6 {[%clk 0:00:39]}  Rb1 {[%clk 0:00:03]} 63. Kd6 {[%clk 0:00:37]}  Rd1+ {[%clk 0:00:03]} 64. Kc5 {[%clk 0:00:37]}  Rc1+ {[%clk 0:00:03]} 65. Kd4 {[%clk 0:00:38]}  Rd1+ {[%clk 0:00:04]} 66. Kc3 {[%clk 0:00:38]}  Rb1 {[%clk 0:00:04]} 67. Kc2 {[%clk 0:00:38]}  Rb6 {[%clk 0:00:04]} 68. Kc3 {[%clk 0:00:39]}  Rb1 {[%clk 0:00:02]} 69. Kd3 {[%clk 0:00:39]}  Rb2 {[%clk 0:00:03]} 70. Ke4 {[%clk 0:00:39]}  Rb1 {[%clk 0:00:03]} 71. Kd5 {[%clk 0:00:39]}  Rb2 {[%clk 0:00:03]} 72. Ke5 {[%clk 0:00:38]}  Re2+ {[%clk 0:00:03]} 73. Kf4 {[%clk 0:00:38]}  Rb2 {[%clk 0:00:04]} 74. Kg5 {[%clk 0:00:39]}  Rb1 {[%clk 0:00:05]} 75. Kh5 {[%clk 0:00:32]}  Rb2 {[%clk 0:00:05]} 76. Kg5 {[%clk 0:00:29]}  Rb1 {[%clk 0:00:05]} 77. Kf4 {[%clk 0:00:29]}  Rb4+ {[%clk 0:00:05]} 78. Ke3 {[%clk 0:00:30]}  Rb1 {[%clk 0:00:06]} 79. Kd2 {[%clk 0:00:30]}  Rb2+ {[%clk 0:00:06]} 80. Kc3 {[%clk 0:00:30]}  Rb6 {[%clk 0:00:06]} 81. Kc4 {[%clk 0:00:31]}  Rb1 {[%clk 0:00:06]} 82. Kd5 {[%clk 0:00:31]}  Rd1+ {[%clk 0:00:06]} 83. Ke4 {[%clk 0:00:31]}  Re1+ {[%clk 0:00:06]} 84. Kf3 {[%clk 0:00:31]}  Rf1+ {[%clk 0:00:06]} 85. Ke2 {[%clk 0:00:32]}  Rb1 {[%clk 0:00:07]} 86. Kd3 {[%clk 0:00:32]}  Rb2 {[%clk 0:00:07]} 87. Kc4 {[%clk 0:00:33]}  Rb1 {[%clk 0:00:07]} 88. Kc3 {[%clk 0:00:33]}  Rb6 {[%clk 0:00:06]} 89. Kc2 {[%clk 0:00:33]}  Rb5 {[%clk 0:00:06]} 90. Kd2 {[%clk 0:00:33]}  Rb6 {[%clk 0:00:05]} 91. Ke2 {[%clk 0:00:33]}  Rb5 {[%clk 0:00:06]} 92. Kf2 {[%clk 0:00:34]}  Rb6 {[%clk 0:00:06]} 93. Kg3 {[%clk 0:00:34]}  Rb5 {[%clk 0:00:07]} 94. Kh4 {[%clk 0:00:35]}  Rb1 {[%clk 0:00:07]} 95. Kg5 {[%clk 0:00:35]}  Rb2 {[%clk 0:00:07]} 96. Kf6 {[%clk 0:00:36]}  Rb6+ {[%clk 0:00:07]} 97. Ke7 {[%clk 0:00:36]}  Rb1 {[%clk 0:00:07]} 98. Kd7 {[%clk 0:00:36]}  Rd1+ {[%clk 0:00:07]} 99. Kc7 {[%clk 0:00:36]}  Rc1+ {[%clk 0:00:07]} 100. Kb6 {[%clk 0:00:36]}  Rb1+ {[%clk 0:00:08]} 101. Ka5 {[%clk 0:00:37]}  Ra1+ {[%clk 0:00:08]} 102. Kb4 {[%clk 0:00:37]}  Rb1+ {[%clk 0:00:08]} 103. Ka3 {[%clk 0:00:37]}  Rb6 {[%clk 0:00:07]} 104. Ka4 {[%clk 0:00:38]}  Rb1 {[%clk 0:00:07]} 105. Ka5 {[%clk 0:00:38]}  Ra1+ {[%clk 0:00:07]} 106. Kb6 {[%clk 0:00:38]}  Rb1+ {[%clk 0:00:08]} 107. Kc5 {[%clk 0:00:39]}  Rc1+ {[%clk 0:00:08]} 108. Kd4 {[%clk 0:00:40]}  Rd1+ {[%clk 0:00:08]} 109. Ke5 {[%clk 0:00:41]}  Rb1 {[%clk 0:00:08]} 110. Kf6 {[%clk 0:00:42]}  Rb2 {[%clk 0:00:07]} 111. Ke5 {[%clk 0:00:42]} 1/2-1/2

[Event "November 21 Early 2023"]
[Site "https://www.chess.com"]
[Date "2023.11.21"]
[Round "1"]
[White "Bao, Qilin"]
[Black "Baghdasaryan, Vahe"]
[Result "1-0"]
[Board "151"]
[TimeControl "180+1"]
[WhiteFideId "8605750"]
[BlackFideId "13303139"]
[WhiteElo "2320"]
[BlackElo "2154"]
[WhiteTeam "CHN"]
[BlackTeam "ARM"]
[WhiteClock "0:02:07"]
[BlackClock "0:00:22"]

1. Nf3 {[%clk 0:02:57]}  d5 {[%clk 0:02:46]} 2. g3 {[%clk 0:02:56]}  Nf6 {[%clk 0:02:44]} 3. Bg2 {[%clk 0:02:56]}  Bf5 {[%clk 0:02:42]} 4. O-O {[%clk 0:02:55]}  e6 {[%clk 0:02:42]} 5. d3 {[%clk 0:02:55]}  h6 {[%clk 0:02:42]} 6. b3 {[%clk 0:02:56]}  Be7 {[%clk 0:02:40]} 7. Bb2 {[%clk 0:02:56]}  O-O {[%clk 0:02:39]} 8. Nbd2 {[%clk 0:02:57]}  c5 {[%clk 0:02:38]} 9. c4 {[%clk 0:02:55]}  Nc6 {[%clk 0:02:38]} 10. Ne5 {[%clk 0:02:54]}  Nxe5 {[%clk 0:02:20]} 11. Bxe5 {[%clk 0:02:54]}  Nd7 {[%clk 0:02:17]} 12. Bb2 {[%clk 0:02:54]}  Bf6 {[%clk 0:02:17]} 13. Qc2 {[%clk 0:02:53]}  Bxb2 {[%clk 0:02:16]} 14. Qxb2 {[%clk 0:02:52]}  Nf6 {[%clk 0:02:17]} 15. e4 {[%clk 0:02:37]}  dxe4 {[%clk 0:02:10]} 16. dxe4 {[%clk 0:02:37]}  Bg6 {[%clk 0:02:00]} 17. e5 {[%clk 0:02:37]}  Nd7 {[%clk 0:01:53]} 18. Bxb7 {[%clk 0:02:37]}  Rb8 {[%clk 0:01:53]} 19. Be4 {[%clk 0:02:36]}  Bxe4 {[%clk 0:01:45]} 20. Nxe4 {[%clk 0:02:36]}  Qc7 {[%clk 0:01:41]} 21. f4 {[%clk 0:02:21]}  Rfd8 {[%clk 0:01:34]} 22. Rad1 {[%clk 0:02:20]}  Nb6 {[%clk 0:01:29]} 23. Qf2 {[%clk 0:02:16]}  Nd7 {[%clk 0:01:22]} 24. Rd6 {[%clk 0:02:15]}  a5 {[%clk 0:01:08]} 25. Rfd1 {[%clk 0:02:15]}  Kh7 {[%clk 0:00:50]} 26. Qd2 {[%clk 0:02:12]}  Qb7 {[%clk 0:00:34]} 27. Nc3 {[%clk 0:02:10]}  Nxe5 {[%clk 0:00:22]} 28. fxe5 {[%clk 0:02:07]} 1-0

[Event "November 21 Early 2023"]
[Site "https://www.chess.com"]
[Date "2023.11.21"]
[Round "1"]
[White "Skurikhin, Dmitrij"]
[Black "Weishaeutel, Moritz"]
[Result "0-1"]
[Board "152"]
[TimeControl "180+1"]
[WhiteFideId "4161297"]
[BlackFideId "12967300"]
[WhiteElo "2197"]
[BlackElo "2321"]
[WhiteTeam "RUS"]
[BlackTeam "GER"]
[WhiteClock "0:00:18"]
[BlackClock "0:01:49"]

1. d4 {[%clk 0:02:55]}  Nf6 {[%clk 0:02:59]} 2. Nf3 {[%clk 0:02:54]}  d5 {[%clk 0:02:57]} 3. c4 {[%clk 0:02:54]}  e6 {[%clk 0:02:56]} 4. Nc3 {[%clk 0:02:53]}  Be7 {[%clk 0:02:47]} 5. cxd5 {[%clk 0:02:53]}  exd5 {[%clk 0:02:48]} 6. Bg5 {[%clk 0:02:52]}  O-O {[%clk 0:02:47]} 7. e3 {[%clk 0:02:52]}  c6 {[%clk 0:02:47]} 8. Qc2 {[%clk 0:02:51]}  Nbd7 {[%clk 0:02:45]} 9. Bd3 {[%clk 0:02:50]}  Re8 {[%clk 0:02:46]} 10. h3 {[%clk 0:02:50]}  Ne4 {[%clk 0:02:42]} 11. Bf4 {[%clk 0:02:48]}  Ndf6 {[%clk 0:02:38]} 12. O-O {[%clk 0:02:41]}  Bd6 {[%clk 0:02:37]} 13. Bxd6 {[%clk 0:02:39]}  Qxd6 {[%clk 0:02:38]} 14. Ne5 {[%clk 0:02:39]}  Bf5 {[%clk 0:02:33]} 15. f3 {[%clk 0:02:34]}  Nxc3 {[%clk 0:02:30]} 16. Bxf5 {[%clk 0:02:34]}  Nb5 {[%clk 0:02:30]} 17. a3 {[%clk 0:02:17]}  c5 {[%clk 0:02:29]} 18. Bd3 {[%clk 0:01:59]}  Nc7 {[%clk 0:02:20]} 19. b4 {[%clk 0:01:47]}  cxd4 {[%clk 0:02:20]} 20. exd4 {[%clk 0:01:47]}  Qb6 {[%clk 0:02:21]} 21. Kh1 {[%clk 0:01:09]}  Ne6 {[%clk 0:02:20]} 22. Ng4 {[%clk 0:00:58]}  Nxd4 {[%clk 0:02:11]} 23. Nxf6+ {[%clk 0:00:52]}  Qxf6 {[%clk 0:02:12]} 24. Bxh7+ {[%clk 0:00:52]}  Kh8 {[%clk 0:02:12]} 25. Qd3 {[%clk 0:00:52]}  g6 {[%clk 0:02:10]} 26. Bxg6 {[%clk 0:00:48]}  fxg6 {[%clk 0:02:11]} 27. Rad1 {[%clk 0:00:48]}  Ne2 {[%clk 0:02:12]} 28. Rfe1 {[%clk 0:00:45]}  Nf4 {[%clk 0:02:11]} 29. Qb5 {[%clk 0:00:39]}  Qc6 {[%clk 0:01:55]} 30. Qf1 {[%clk 0:00:20]}  Qd6 {[%clk 0:01:52]} 31. Rxe8+ {[%clk 0:00:18]}  Rxe8 {[%clk 0:01:51]} 32. Qb5 {[%clk 0:00:19]}  Qc6 {[%clk 0:01:51]} 33. Qf1 {[%clk 0:00:18]}  Qc2 {[%clk 0:01:48]} 34. Re1 {[%clk 0:00:18]}  Rxe1 {[%clk 0:01:48]} 35. Qxe1 {[%clk 0:00:18]}  Qxg2# {[%clk 0:01:49]} 0-1

[Event "November 21 Early 2023"]
[Site "https://www.chess.com"]
[Date "2023.11.21"]
[Round "1"]
[White "SmirnovAlexandrA"]
[Black "Ovezdurdyyeva, Jemal"]
[Result "1-0"]
[Board "153"]
[TimeControl "180+1"]
[BlackFideId "14001888"]
[WhiteElo "2632"]
[BlackElo "2086"]
[BlackTeam "TKM"]
[WhiteClock "0:01:34"]
[BlackClock "0:01:13"]

1. e4 {[%clk 0:02:59]}  d6 {[%clk 0:03:00]} 2. d4 {[%clk 0:02:58]}  Nf6 {[%clk 0:03:00]} 3. Nc3 {[%clk 0:02:59]}  g6 {[%clk 0:03:00]} 4. Bg5 {[%clk 0:02:57]}  Bg7 {[%clk 0:03:00]} 5. e5 {[%clk 0:02:58]}  Nfd7 {[%clk 0:02:58]} 6. f4 {[%clk 0:02:57]}  O-O {[%clk 0:02:56]} 7. Nf3 {[%clk 0:02:55]}  f6 {[%clk 0:02:54]} 8. exf6 {[%clk 0:02:56]}  exf6 {[%clk 0:02:54]} 9. Bh4 {[%clk 0:02:55]}  Nb6 {[%clk 0:02:49]} 10. Be2 {[%clk 0:02:54]}  Nc6 {[%clk 0:02:46]} 11. O-O {[%clk 0:02:53]}  Bf5 {[%clk 0:02:45]} 12. a4 {[%clk 0:02:49]}  a5 {[%clk 0:02:44]} 13. d5 {[%clk 0:02:49]}  Nb4 {[%clk 0:02:31]} 14. Nd4 {[%clk 0:02:48]}  Qc8 {[%clk 0:02:30]} 15. Bf3 {[%clk 0:02:29]}  Nc4 {[%clk 0:02:29]} 16. Qe2 {[%clk 0:02:24]}  Nxb2 {[%clk 0:02:17]} 17. Rab1 {[%clk 0:02:18]}  Re8 {[%clk 0:02:17]} 18. Qf2 {[%clk 0:02:05]}  Nc4 {[%clk 0:02:15]} 19. Rbe1 {[%clk 0:02:06]}  Qd7 {[%clk 0:02:08]} 20. Ncb5 {[%clk 0:02:02]}  Na3 {[%clk 0:01:34]} 21. Nxa3 {[%clk 0:01:57]}  Qxa4 {[%clk 0:01:35]} 22. Nxf5 {[%clk 0:01:50]}  gxf5 {[%clk 0:01:32]} 23. Ra1 {[%clk 0:01:47]}  Re7 {[%clk 0:01:24]} 24. Qd4 {[%clk 0:01:38]}  Rf8 {[%clk 0:01:13]} 25. c3 {[%clk 0:01:34]} 1-0